[Event "Championnat du monde jeunes U10"]
[Date "2024.11.25"]
[White "Ten Dam, Bram"]
[Black "Lenkov, Stanislav"]
[WhiteElo "2012"]
[BlackElo "1693"]
[Round "10.36"]
[Result "1-0"]
[TimeControl "5400+30"]

1. e4 {[%clk 1:30:57]} 1... c5 {[%clk 1:30:30]} 2. Nf3 {[%clk 1:31:20]} 2... e6
{[%clk 1:30:47]} 3. d4 {[%clk 1:31:37]} 3... cxd4 {[%clk 1:29:36]} 4. Nxd4
{[%clk 1:31:48]} 4... Nf6 {[%clk 1:29:38]} 5. Nc3 {[%clk 1:32:05]} 5... Nc6
{[%clk 1:29:39]} 6. Ndb5 {[%clk 1:32:17]} 6... Bb4 {[%clk 1:29:14]} 7. a3 {[%clk
1:32:14]} 7... Bxc3+ {[%clk 1:28:26]} 8. Nxc3 {[%clk 1:32:36]} 8... d5 {[%clk
1:28:21]} 9. exd5 {[%clk 1:29:38]} 9... exd5 {[%clk 1:28:08]} 10. Bd3 {[%clk
1:06:27]} 10... O-O {[%clk 1:27:51]} 11. O-O {[%clk 1:05:32]} 11... Bg4 {[%clk
1:26:00]} 12. Be2 {[%clk 1:04:07]} 12... Bf5 {[%clk 1:22:34]} 13. Bg5 {[%clk
1:03:20]} 13... d4 {[%clk 1:22:14]} 14. Na2 {[%clk 0:57:06]} 14... Rc8 {[%clk
1:19:28]} 15. Nc1 {[%clk 0:53:23]} 15... Qd6 {[%clk 1:12:31]} 16. Nd3 {[%clk
0:49:30]} 16... Nd5 {[%clk 1:12:15]} 17. Re1 {[%clk 0:47:31]} 17... Qg6 {[%clk
1:08:39]} 18. Bh4 {[%clk 0:41:43]} 18... Be4 {[%clk 1:01:21]} 19. Bf3 {[%clk
0:38:01]} 19... Bxd3 {[%clk 0:59:08]} 20. cxd3 {[%clk 0:36:52]} 20... Nf4 {[%clk
0:59:16]} 21. Bg3 {[%clk 0:34:22]} 21... Qf6 {[%clk 0:45:06]} 22. Qd2 {[%clk
0:28:56]} 22... Nh3+ {[%clk 0:44:37]} 23. Kh1 {[%clk 0:27:21]} 23... Ng5 {[%clk
0:41:56]} 24. Bd5 {[%clk 0:25:36]} 24... Rfd8 {[%clk 0:39:55]} 25. Ba2 {[%clk
0:25:17]} 25... Ne6 {[%clk 0:36:14]} 26. Re4 {[%clk 0:23:55]} 26... Re8 {[%clk
0:30:26]} 27. Rae1 {[%clk 0:24:09]} 27... h6 {[%clk 0:29:02]} 28. h3 {[%clk
0:20:03]} 28... Nc7 {[%clk 0:28:13]} 29. Rf4 {[%clk 0:18:32]} 29... Rxe1+ {[%clk
0:22:30]} 30. Qxe1 {[%clk 0:18:55]} 30... Re8 {[%clk 0:22:38]} 31. Qd2 {[%clk
0:17:40]} 31... Qg5 {[%clk 0:22:37]} 32. h4 {[%clk 0:17:02]} 1-0

[Variant "Standard"]
[Site "Europe Echecs"]

[Event "Championnat du monde jeunes U10"]
[Date "2024.11.25"]
[White "Chen, Chicheng Leon"]
[Black "Yao, Lucas Mason Pin Qian"]
[WhiteElo "1987"]
[BlackElo "1687"]
[Round "10.37"]
[Result "1-0"]
[TimeControl "5400+30"]

1. e4 {[%clk 1:30:59]} 1... e5 {[%clk 1:30:51]} 2. Nf3 {[%clk 1:31:24]} 2... Nc6
{[%clk 1:31:13]} 3. Bc4 {[%clk 1:31:39]} 3... Bc5 {[%clk 1:31:30]} 4. c3 {[%clk
1:32:02]} 4... Nf6 {[%clk 1:31:43]} 5. d4 {[%clk 1:32:27]} 5... exd4 {[%clk
1:32:04]} 6. b4 Be7 {[%clk 1:32:16]} 7. e5 {[%clk 1:33:04]} 7... Ne4 {[%clk
1:32:13]} 8. Bd3 {[%clk 1:33:28]} 8... d5 {[%clk 1:29:15]} 9. b5 {[%clk
1:30:19]} 9... Nb8 {[%clk 1:24:54]} 10. cxd4 {[%clk 1:24:57]} 10... c5 {[%clk
1:22:33]} 11. Nbd2 {[%clk 1:17:50]} 11... Nxd2 {[%clk 1:19:32]} 12. Bxd2 {[%clk
1:18:04]} 12... c4 {[%clk 1:18:11]} 13. Bc2 {[%clk 1:18:18]} 13... Bg4 {[%clk
1:16:11]} 14. O-O {[%clk 1:15:18]} 14... O-O {[%clk 1:15:15]} 15. Qe2 {[%clk
1:09:18]} 15... Qd7 {[%clk 1:13:58]} 16. a4 {[%clk 1:07:03]} 16... Bf5 {[%clk
1:12:57]} 17. Bg5 {[%clk 1:03:31]} 17... Bxc2 {[%clk 1:12:02]} 18. Qxc2 {[%clk
1:03:43]} 18... h6 {[%clk 1:11:26]} 19. Bxe7 {[%clk 1:03:45]} 19... Qxe7 {[%clk
1:11:45]} 20. g3 {[%clk 1:01:40]} 20... Nd7 {[%clk 1:07:59]} 21. Nh4 {[%clk
1:00:49]} 21... Qe6 {[%clk 1:06:53]} 22. Nf5 {[%clk 0:59:06]} 22... Nb6 {[%clk
1:00:59]} 23. f4 {[%clk 0:55:02]} 23... Nc8 {[%clk 0:58:32]} 24. Kh1 {[%clk
0:46:10]} 24... Qg6 {[%clk 0:56:46]} 25. g4 {[%clk 0:43:32]} 25... Kh8 {[%clk
0:54:18]} 26. Qg2 {[%clk 0:41:16]} 26... Rd8 {[%clk 0:54:13]} 27. Rad1 {[%clk
0:35:36]} 27... a6 {[%clk 0:52:35]} 28. Ne3 {[%clk 0:32:32]} 28... axb5 {[%clk
0:52:04]} 29. f5 {[%clk 0:26:15]} 29... Qg5 {[%clk 0:52:17]} 30. Nxd5 {[%clk
0:25:05]} 30... Rxa4 {[%clk 0:52:19]} 31. f6 {[%clk 0:20:54]} 31... g6 {[%clk
0:51:46]} 32. Nc3 {[%clk 0:19:32]} 32... Ra3 {[%clk 0:49:14]} 33. Nxb5 {[%clk
0:11:28]} 33... Rb3 {[%clk 0:49:27]} 34. Nc7 {[%clk 0:11:43]} 34... c3 {[%clk
0:48:55]} 35. e6 {[%clk 0:10:59]} 35... Rb2 {[%clk 0:49:07]} 36. Qg3 {[%clk
0:05:46]} 36... c2 {[%clk 0:47:53]} 37. e7 {[%clk 0:04:51]} 37... Nxe7 {[%clk
0:47:44]} 38. fxe7 {[%clk 0:05:16]} 38... cxd1=Q {[%clk 0:48:01]} 39. exd8=Q+
{[%clk 0:05:09]} 39... Qxd8 {[%clk 0:48:22]} 40. Rxd1 {[%clk 0:05:30]} 40... Rc2
{[%clk 0:48:26]} 41. Qe5+ {[%clk 0:05:14]} 41... Kh7 {[%clk 0:47:45]} 42. Ne8
{[%clk 0:05:09]} 42... f6 {[%clk 0:47:52]} 43. Nxf6+ {[%clk 0:05:34]} 43... Qxf6
{[%clk 0:47:00]} 44. Qxf6 {[%clk 0:06:01]} 44... Rc7 {[%clk 0:47:19]} 45. d5
{[%clk 0:06:27]} 45... b5 {[%clk 0:47:38]} 46. d6 {[%clk 0:06:49]} 46... Rd7
{[%clk 0:47:55]} 47. Qe7+ {[%clk 0:07:15]} 47... Rxe7 {[%clk 0:48:07]} 48. dxe7
{[%clk 0:07:41]} 48... Kg7 {[%clk 0:48:24]} 49. Rf1 {[%clk 0:08:02]} 49... g5
{[%clk 0:48:07]} 50. e8=Q {[%clk 0:08:25]} 50... h5 {[%clk 0:48:27]} 51. Rf7+
{[%clk 0:08:51]} 51... Kh6 {[%clk 0:48:46]} 52. Qh8+ {[%clk 0:09:17]} 52... Kg6
{[%clk 0:49:06]} 53. Qxh5# {[%clk 1:30:30]} 1-0

[Variant "Standard"]
[Site "Europe Echecs"]

[Event "Championnat du monde jeunes U10"]
[Date "2024.11.25"]
[White "Bartash, Saveli"]
[Black "Chakhalov, Mikael"]
[WhiteElo "1661"]
[BlackElo "1962"]
[Round "10.38"]
[Result "0-1"]
[TimeControl "5400+30"]

1. e4 {[%clk 1:30:56]} 1... c5 {[%clk 1:30:51]} 2. Nf3 {[%clk 1:31:08]} 2... Nc6
{[%clk 1:31:19]} 3. d4 {[%clk 1:31:18]} 3... cxd4 {[%clk 1:31:45]} 4. Nxd4
{[%clk 1:31:36]} 4... Nf6 {[%clk 1:32:06]} 5. Nc3 {[%clk 1:31:53]} 5... d6
{[%clk 1:32:34]} 6. Be2 {[%clk 1:31:29]} 6... e5 {[%clk 1:32:53]} 7. Nb3 {[%clk
1:31:39]} 7... Be7 {[%clk 1:33:18]} 8. Be3 {[%clk 1:31:51]} 8... O-O {[%clk
1:33:35]} 9. f3 {[%clk 1:32:14]} 9... Be6 {[%clk 1:33:59]} 10. Qd2 {[%clk
1:32:33]} 10... a6 {[%clk 1:31:58]} 11. O-O-O {[%clk 1:32:13]} 11... b5 {[%clk
1:31:44]} 12. g4 {[%clk 1:30:02]} 12... Rc8 {[%clk 1:31:15]} 13. h4 {[%clk
1:28:06]} 13... Na5 {[%clk 1:30:33]} 14. Kb1 {[%clk 1:25:26]} 14... Nc4 {[%clk
1:28:55]} 15. Bxc4 {[%clk 1:25:40]} 15... Bxc4 {[%clk 1:22:37]} 16. h5 {[%clk
1:22:54]} 16... a5 {[%clk 1:14:31]} 17. g5 {[%clk 1:19:20]} 17... Nd7 {[%clk
1:14:28]} 18. g6 {[%clk 1:14:57]} 18... fxg6 {[%clk 1:07:59]} 19. hxg6 {[%clk
1:13:46]} 19... hxg6 {[%clk 1:08:22]} 20. Qg2 {[%clk 1:10:15]} 20... Rf6 {[%clk
1:05:13]} 21. Bg5 {[%clk 1:06:03]} 21... Re6 {[%clk 1:04:24]} 22. Bxe7 {[%clk
1:06:18]} 22... Qxe7 {[%clk 1:04:30]} 23. Qh3 {[%clk 1:01:10]} 23... Kf7 {[%clk
1:02:32]} 24. Nd5 {[%clk 0:58:02]} 24... Bxd5 {[%clk 0:59:23]} 25. exd5 {[%clk
0:57:41]} 25... Rf6 {[%clk 0:59:23]} 26. Nxa5 {[%clk 0:57:16]} 26... Rc5 {[%clk
0:58:43]} 27. Nc6 {[%clk 0:56:09]} 27... Qe8 {[%clk 0:58:39]} 28. Qg3 {[%clk
0:49:57]} 28... Nb6 {[%clk 0:56:32]} 29. Nb4 {[%clk 0:48:51]} 29... Qa8 {[%clk
0:53:41]} 30. f4 {[%clk 0:44:43]} 30... exf4 {[%clk 0:51:17]} 31. Qf3 {[%clk
0:44:19]} 31... Nc4 {[%clk 0:45:38]} 32. Qg4 {[%clk 0:40:59]} 32... Ne5 {[%clk
0:43:39]} 33. Qh3 {[%clk 0:40:02]} 33... Qc8 {[%clk 0:41:05]} 34. Qh2 {[%clk
0:38:45]} 34... Ng4 {[%clk 0:39:49]} 35. Qd2 {[%clk 0:38:13]} 35... Ne3 {[%clk
0:38:57]} 36. Rde1 {[%clk 0:37:41]} 36... g5 {[%clk 0:37:47]} 37. Rxe3 {[%clk
0:35:41]} 37... fxe3 {[%clk 0:37:45]} 38. Qxe3 {[%clk 0:36:06]} 38... Rf5 {[%clk
0:24:39]} 39. a3 {[%clk 0:34:20]} 39... Rc4 {[%clk 0:18:31]} 40. Nc6 {[%clk
0:29:14]} 40... Qe8 {[%clk 0:16:44]} 41. Qa7+ {[%clk 0:25:50]} 41... Kf6 {[%clk
0:17:01]} 42. Rh7 {[%clk 0:23:50]} 42... Qf7 {[%clk 0:14:37]} 43. Qe3 {[%clk
0:22:56]} 43... Rxd5 {[%clk 0:13:57]} 44. Rh1 {[%clk 0:21:18]} 44... Rxc6 {[%clk
0:09:33]} 45. Rf1+ {[%clk 0:21:32]} 45... Rf5 {[%clk 0:09:57]} 46. Rxf5+ {[%clk
0:21:38]} 46... Kxf5 {[%clk 0:10:23]} 47. Qf3+ {[%clk 0:21:56]} 47... Ke6 {[%clk
0:10:49]} 48. Qxc6 {[%clk 0:22:01]} 48... Qf1+ {[%clk 0:11:15]} 49. Ka2 {[%clk
0:22:23]} 49... Qc4+ {[%clk 0:11:41]} 50. Qxc4+ {[%clk 0:22:48]} 50... bxc4
{[%clk 0:12:07]} 51. a4 {[%clk 0:23:09]} 51... Kd7 {[%clk 0:12:25]} 0-1

[Variant "Standard"]
[Site "Europe Echecs"]

[Event "Championnat du monde jeunes U10"]
[Date "2024.11.25"]
[White "Garcia Tanjala, Marko"]
[Black "Barsov, Mikhail"]
[WhiteElo "1833"]
[BlackElo "1668"]
[Round "10.39"]
[Result "1-0"]
[TimeControl "5400+30"]

1. e4 {[%clk 1:30:45]} 1... c6 {[%clk 1:30:52]} 2. Nf3 {[%clk 1:31:06]} 2... d5
{[%clk 1:31:12]} 3. Nc3 {[%clk 1:31:30]} 3... dxe4 {[%clk 1:31:18]} 4. Nxe4
{[%clk 1:31:53]} 4... Nf6 {[%clk 1:31:39]} 5. Qe2 {[%clk 1:32:15]} 5... Nxe4
{[%clk 1:32:03]} 6. Qxe4 {[%clk 1:32:39]} 6... Nd7 {[%clk 1:32:28]} 7. Bc4
{[%clk 1:32:59]} 7... Nf6 {[%clk 1:32:51]} 8. Ne5 {[%clk 1:33:25]} 8... e6
{[%clk 1:33:16]} 9. Qe2 {[%clk 1:33:26]} 9... b5 {[%clk 1:33:10]} 10. Bd3 {[%clk
1:33:48]} 10... Qc7 {[%clk 1:31:06]} 11. a4 {[%clk 1:33:43]} 11... b4 {[%clk
1:17:52]} 12. b3 {[%clk 1:27:44]} 12... Bd6 {[%clk 1:04:40]} 13. Bb2 {[%clk
1:28:03]} 13... Bb7 {[%clk 0:57:02]} 14. O-O-O {[%clk 1:20:51]} 14... Nd5 {[%clk
0:44:11]} 15. g3 {[%clk 1:14:59]} 15... a6 {[%clk 0:27:15]} 16. Nc4 {[%clk
1:14:13]} 16... Nf6 {[%clk 0:09:06]} 17. f4 {[%clk 1:09:06]} 17... c5 {[%clk
0:08:14]} 18. Rhf1 {[%clk 1:09:24]} 18... O-O-O {[%clk 0:07:06]} 19. a5 {[%clk
1:08:09]} 19... Nd7 {[%clk 0:04:15]} 20. Bxg7 {[%clk 1:08:23]} 20... Rhg8 {[%clk
0:04:36]} 21. Bb2 {[%clk 1:08:46]} 21... h6 {[%clk 0:04:50]} 22. Qh5 {[%clk
1:08:28]} 22... f6 {[%clk 0:04:24]} 23. Rde1 {[%clk 1:07:53]} 23... Rde8 {[%clk
0:04:28]} 24. Bg6 {[%clk 1:07:43]} 24... Re7 {[%clk 0:03:15]} 25. Bf7 {[%clk
1:06:38]} 25... Rf8 {[%clk 0:02:46]} 26. Bxe6 {[%clk 1:06:29]} 26... Kb8 {[%clk
0:02:19]} 27. f5 {[%clk 1:04:32]} 27... Rfe8 {[%clk 0:02:02]} 28. Qxh6 {[%clk
1:03:34]} 28... Bd5 {[%clk 0:01:39]} 29. Nxd6 {[%clk 1:03:36]} 29... Qxd6 {[%clk
0:01:28]} 30. Qf4 {[%clk 1:03:59]} 30... Qxf4 {[%clk 0:01:30]} 31. Rxf4 {[%clk
1:04:19]} 31... Bxe6 {[%clk 0:01:44]} 32. Rfe4 {[%clk 1:04:32]} 32... Rh8 {[%clk
0:00:34]} 33. fxe6 {[%clk 1:04:47]} 33... Ne5 {[%clk 0:00:54]} 34. Rxe5 {[%clk
1:05:11]} 34... Rxh2 {[%clk 0:00:44]} 35. Rxc5 {[%clk 1:05:24]} 35... Rxe6
{[%clk 0:00:51]} 36. Kd1 {[%clk 1:05:38]} 36... Rd6 {[%clk 0:01:02]} 37. d3
{[%clk 1:05:58]} 37... Rg2 {[%clk 0:01:05]} 38. Bc1 {[%clk 1:06:11]} 38... Kb7
{[%clk 0:01:01]} 39. Re7+ {[%clk 1:06:32]} 39... Kb8 {[%clk 0:01:04]} 40. Bf4
{[%clk 1:06:53]} 40... Rg1+ {[%clk 0:01:26]} 41. Kd2 {[%clk 1:07:15]} 41... Rg2+
{[%clk 0:01:35]} 42. Kc1 {[%clk 1:07:37]} 42... Rg1+ {[%clk 0:01:33]} 43. Kb2
{[%clk 1:07:56]} 43... Ka8 {[%clk 0:01:13]} 44. Rc8# 1-0

[Variant "Standard"]
[Site "Europe Echecs"]

[Event "Championnat du monde jeunes U10"]
[Date "2024.11.25"]
[White "Buklaho, Ignacy"]
[Black "Hochman, Gur"]
[WhiteElo "1822"]
[BlackElo "1626"]
[Round "10.40"]
[Result "1-0"]
[TimeControl "5400+30"]

1. c4 {[%clk 1:30:53]} 1... e5 {[%clk 1:30:54]} 2. g3 {[%clk 1:31:17]} 2... Nc6
{[%clk 1:31:18]} 3. Bg2 {[%clk 1:31:38]} 3... f5 {[%clk 1:31:38]} 4. Nc3 {[%clk
1:32:01]} 4... Nf6 {[%clk 1:32:01]} 5. e3 {[%clk 1:32:22]} 5... d5 {[%clk
1:32:25]} 6. cxd5 {[%clk 1:32:34]} 6... Nb4 {[%clk 1:32:45]} 7. d3 {[%clk
1:32:42]} 7... Nbxd5 {[%clk 1:32:29]} 8. Nxd5 {[%clk 1:32:59]} 8... Nxd5 {[%clk
1:32:48]} 9. Nf3 {[%clk 1:33:19]} 9... Bd6 {[%clk 1:31:43]} 10. O-O {[%clk
1:33:41]} 10... O-O {[%clk 1:30:20]} 11. Qb3 {[%clk 1:34:07]} 11... Be6 {[%clk
1:30:38]} 12. Nd4 {[%clk 1:34:31]} 12... exd4 {[%clk 1:30:08]} 13. Bxd5 {[%clk
1:34:56]} 13... Bxd5 {[%clk 1:28:32]} 14. Qxd5+ {[%clk 1:35:20]} 14... Kh8
{[%clk 1:28:51]} 15. Qxd4 {[%clk 1:35:43]} 15... Qe8 {[%clk 1:27:23]} 16. Bd2
{[%clk 1:21:45]} 16... Rf6 {[%clk 1:22:46]} 17. Bc3 {[%clk 1:19:48]} 17... Qh5
{[%clk 1:18:31]} 18. Qd5 {[%clk 1:02:25]} 18... Rh6 {[%clk 1:16:31]} 19. Qg2
{[%clk 1:01:43]} 19... Re8 {[%clk 1:14:05]} 20. Rae1 {[%clk 0:59:19]} 20... Ree6
{[%clk 1:11:13]} 21. b4 {[%clk 0:57:17]} 21... Kg8 {[%clk 1:09:01]} 22. f4
{[%clk 0:49:14]} 22... c5 {[%clk 1:02:57]} 23. b5 {[%clk 0:47:30]} 23... c4
{[%clk 1:01:01]} 24. dxc4 {[%clk 0:39:07]} 24... Re4 {[%clk 1:00:44]} 25. Bd4
{[%clk 0:37:04]} 25... Rhe6 {[%clk 0:50:06]} 26. c5 {[%clk 0:34:29]} 26... Bxf4
{[%clk 0:48:47]} 27. Qf2 {[%clk 0:13:29]} 27... Bxg3 {[%clk 0:45:51]} 28. hxg3
{[%clk 0:13:34]} 28... Rh6 {[%clk 0:46:07]} 29. Qg2 {[%clk 0:13:36]} 29... Rh4
{[%clk 0:46:19]} 30. Qd5+ {[%clk 0:13:27]} 1-0

[Variant "Standard"]
[Site "Europe Echecs"]

[Event "Championnat du monde jeunes U10"]
[Date "2024.11.25"]
[White "Blekh, Erik"]
[Black "Otetileu, Amanbek"]
[WhiteElo "1790"]
[BlackElo "1632"]
[Round "10.41"]
[Result "1/2-1/2"]
[TimeControl "5400+30"]

1. Nf3 {[%clk 1:30:54]} 1... Nf6 {[%clk 1:30:29]} 2. g3 {[%clk 1:31:11]} 2... g6
{[%clk 1:30:50]} 3. b3 {[%clk 1:31:37]} 3... Bg7 {[%clk 1:30:49]} 4. Bb2 {[%clk
1:31:58]} 4... O-O {[%clk 1:31:14]} 5. Bg2 {[%clk 1:32:21]} 5... c6 {[%clk
1:30:34]} 6. O-O {[%clk 1:32:03]} 6... d5 {[%clk 1:30:37]} 7. c4 {[%clk
1:31:34]} 7... Re8 {[%clk 1:22:11]} 8. d4 {[%clk 1:27:50]} 8... a5 {[%clk
1:20:55]} 9. Nc3 {[%clk 1:24:02]} 9... b6 {[%clk 1:00:50]} 10. Ne5 {[%clk
1:20:09]} 10... Bb7 {[%clk 0:54:48]} 11. e4 {[%clk 1:17:08]} 11... e6 {[%clk
0:47:30]} 12. h3 {[%clk 1:15:30]} 12... Nbd7 {[%clk 0:47:16]} 13. Nxd7 {[%clk
1:15:41]} 13... Qxd7 {[%clk 0:47:11]} 14. e5 {[%clk 1:14:37]} 14... Nh5 {[%clk
0:47:35]} 15. Qd2 {[%clk 1:07:46]} 15... Bf8 {[%clk 0:47:34]} 16. g4 {[%clk
1:06:23]} 16... Ng7 {[%clk 0:47:57]} 17. Rac1 {[%clk 1:02:57]} 17... Ba6 {[%clk
0:43:43]} 18. Na4 {[%clk 1:01:45]} 18... Rab8 {[%clk 0:42:41]} 19. Rfe1 {[%clk
1:01:35]} 19... Red8 {[%clk 0:36:26]} 20. c5 {[%clk 1:00:36]} 20... bxc5 {[%clk
0:35:55]} 21. Nxc5 {[%clk 1:00:55]} 21... Bxc5 {[%clk 0:36:07]} 22. Rxc5 {[%clk
1:01:14]} 22... a4 {[%clk 0:36:11]} 23. b4 {[%clk 0:59:59]} 23... Bc4 {[%clk
0:35:21]} 24. a3 {[%clk 0:59:57]} 24... Rb5 {[%clk 0:35:40]} 25. Bc3 {[%clk
0:58:46]} 25... Rxc5 {[%clk 0:35:51]} 26. bxc5 {[%clk 0:59:07]} 26... Rb8 {[%clk
0:35:45]} 27. Bb4 {[%clk 0:59:10]} 27... Ne8 {[%clk 0:35:40]} 28. Bf1 {[%clk
0:59:23]} 28... Bxf1 {[%clk 0:35:56]} 29. Kxf1 {[%clk 0:59:41]} 29... Qb7 {[%clk
0:35:45]} 30. Kg2 {[%clk 0:59:49]} 30... Nc7 {[%clk 0:35:46]} 31. Qc2 {[%clk
0:58:34]} 31... Qb5 {[%clk 0:35:48]} 32. Rb1 {[%clk 0:44:11]} 32... Na6 {[%clk
0:35:28]} 33. Qd2 {[%clk 0:37:09]} 33... Kg7 {[%clk 0:32:06]} 34. Rb2 {[%clk
0:35:26]} 34... Nxb4 {[%clk 0:27:32]} 35. Rxb4 {[%clk 0:34:49]} 35... Qa5 {[%clk
0:27:55]} 36. Qc3 {[%clk 0:33:06]} 36... Rxb4 {[%clk 0:27:47]} 37. axb4 {[%clk
0:33:30]} 37... Qa6 {[%clk 0:27:58]} 38. Qf3 {[%clk 0:32:41]} 38... Qa8 {[%clk
0:27:54]} 39. Qa3 {[%clk 0:32:46]} 39... Kf8 {[%clk 0:26:21]} 40. b5 cxb5 41.
c6+ Ke8 42. Qd6 Qc8 1/2-1/2

[Variant "Standard"]
[Site "Europe Echecs"]

[Event "Championnat du monde jeunes U10"]
[Date "2024.11.25"]
[White "Bulat, Mansur"]
[Black "Zhou, Martin"]
[WhiteElo "1610"]
[BlackElo "1776"]
[Round "10.42"]
[Result "1-0"]
[TimeControl "5400+30"]

1. e4 {[%clk 1:30:31]} 1... c5 {[%clk 1:30:57]} 2. Nf3 {[%clk 1:30:17]} 2... e6
{[%clk 1:31:20]} 3. d4 {[%clk 1:30:09]} 3... cxd4 {[%clk 1:31:42]} 4. Nxd4
{[%clk 1:30:00]} 4... a6 {[%clk 1:32:06]} 5. Nc3 {[%clk 1:29:44]} 5... Qc7
{[%clk 1:32:24]} 6. g3 {[%clk 1:29:37]} 6... Nf6 {[%clk 1:32:47]} 7. Bg2 {[%clk
1:29:00]} 7... Be7 {[%clk 1:33:07]} 8. f4 {[%clk 1:28:24]} 8... d6 {[%clk
1:33:29]} 9. g4 {[%clk 1:28:11]} 9... Nc6 {[%clk 1:24:26]} 10. g5 {[%clk
1:23:34]} 10... Nd7 {[%clk 1:21:04]} 11. Nxc6 {[%clk 1:19:21]} 11... bxc6 {[%clk
1:21:00]} 12. O-O {[%clk 1:19:00]} 12... d5 {[%clk 1:13:58]} 13. exd5 {[%clk
1:17:47]} 13... cxd5 {[%clk 1:13:32]} 14. Kh1 {[%clk 1:14:45]} 14... O-O {[%clk
1:10:03]} 15. f5 {[%clk 1:10:07]} 15... g6 {[%clk 1:01:55]} 16. fxe6 {[%clk
1:03:52]} 16... fxe6 {[%clk 0:59:43]} 17. Nxd5 {[%clk 1:04:01]} 17... exd5
{[%clk 0:50:48]} 18. Qxd5+ {[%clk 1:04:20]} 18... Kh8 {[%clk 0:44:03]} 19. Rxf8+
{[%clk 1:04:42]} 19... Bxf8 {[%clk 0:42:40]} 20. Qxa8 {[%clk 1:04:19]} 20...
Qxc2 {[%clk 0:38:11]} 21. Be3 {[%clk 1:02:42]} 21... Kg7 {[%clk 0:31:54]} 22.
Rc1 {[%clk 1:00:49]} 22... Qd3 {[%clk 0:29:58]} 23. Qxc8 {[%clk 0:59:25]} 23...
Qxe3 {[%clk 0:30:12]} 24. Qxd7+ {[%clk 0:59:49]} 24... Kh8 {[%clk 0:30:25]} 25.
Qc8 {[%clk 0:59:52]} 25... Qe7 {[%clk 0:29:39]} 26. Rf1 {[%clk 1:00:13]} 26...
Kg7 {[%clk 0:29:58]} 27. Qc3+ {[%clk 1:00:23]} 27... Kg8 {[%clk 0:30:17]} 28.
Bd5+ {[%clk 1:00:48]} 28... Qf7 {[%clk 0:29:56]} 29. Bxf7# {[%clk 1:01:10]} 1-0

[Variant "Standard"]
[Site "Europe Echecs"]

[Event "Championnat du monde jeunes U10"]
[Date "2024.11.25"]
[White "Yrysov, Timur"]
[Black "Katta, Sriansh"]
[WhiteElo "1604"]
[BlackElo "1766"]
[Round "10.43"]
[Result "0-1"]
[TimeControl "5400+30"]

1. e4 {[%clk 1:30:54]} 1... c5 2. Nf3 {[%clk 1:30:54]} 2... Nc6 {[%clk 1:31:18]}
3. d4 {[%clk 1:31:03]} 3... cxd4 {[%clk 1:31:42]} 4. Nxd4 {[%clk 1:31:20]} 4...
e5 {[%clk 1:32:10]} 5. Nb5 {[%clk 1:31:27]} 5... d6 {[%clk 1:32:34]} 6. c4
{[%clk 1:31:38]} 6... Be6 {[%clk 1:33:01]} 7. N5c3 {[%clk 1:31:29]} 7... g6
{[%clk 1:33:18]} 8. Bd3 {[%clk 1:31:30]} 8... Bg7 {[%clk 1:33:34]} 9. O-O {[%clk
1:31:23]} 9... Nd4 {[%clk 1:33:23]} 10. Nd5 {[%clk 1:31:20]} 10... Bxd5 {[%clk
1:33:35]} 11. cxd5 {[%clk 1:30:28]} 11... Nf6 {[%clk 1:33:31]} 12. Bg5 {[%clk
1:29:54]} 12... O-O {[%clk 1:33:00]} 13. Nd2 {[%clk 1:29:51]} 13... h6 {[%clk
1:30:27]} 14. Be3 {[%clk 1:29:19]} 14... Nd7 {[%clk 1:29:18]} 15. Nb3 {[%clk
1:22:30]} 15... f5 {[%clk 1:23:07]} 16. Bxd4 {[%clk 1:21:32]} 16... exd4 {[%clk
1:22:01]} 17. exf5 {[%clk 1:21:04]} 17... gxf5 {[%clk 1:22:26]} 18. Bb5 {[%clk
1:19:24]} 18... Nc5 {[%clk 1:20:00]} 19. Nxc5 {[%clk 1:13:48]} 19... dxc5 {[%clk
1:20:21]} 20. Bc4 {[%clk 1:14:02]} 20... Qd6 {[%clk 1:16:11]} 21. Re1 {[%clk
1:11:47]} 21... Rf6 {[%clk 1:09:10]} 22. Qf3 {[%clk 1:10:08]} 22... Raf8 {[%clk
1:05:38]} 23. Re6 {[%clk 1:09:18]} 23... Rxe6 {[%clk 1:04:47]} 24. dxe6 {[%clk
1:09:35]} 24... Qe7 {[%clk 1:04:47]} 25. Re1 {[%clk 1:08:56]} 25... Kh8 {[%clk
1:01:31]} 26. Qd5 {[%clk 1:05:55]} 26... b6 {[%clk 0:56:09]} 27. h3 {[%clk
1:02:55]} 27... Kg8 {[%clk 0:50:16]} 28. Qd7 {[%clk 1:02:50]} 28... Re8 {[%clk
0:47:39]} 29. Kh2 {[%clk 1:01:51]} 29... Bf6 {[%clk 0:44:26]} 30. Qxe7 {[%clk
0:58:08]} 30... Rxe7 {[%clk 0:44:44]} 31. f4 {[%clk 0:58:12]} 31... Kf8 {[%clk
0:38:46]} 32. Bd3 {[%clk 0:58:10]} 32... Ke8 {[%clk 0:38:53]} 33. Bxf5 {[%clk
0:58:23]} 33... c4 {[%clk 0:38:44]} 34. g4 {[%clk 0:53:55]} 34... d3 {[%clk
0:36:04]} 35. b3 {[%clk 0:48:21]} 35... d2 {[%clk 0:34:33]} 36. Rd1 {[%clk
0:48:37]} 36... c3 {[%clk 0:34:58]} 37. Kg3 {[%clk 0:48:36]} 37... Rxe6 {[%clk
0:31:06]} 38. h4 {[%clk 0:35:33]} 38... Re3+ {[%clk 0:28:46]} 39. Kf2 {[%clk
0:35:49]} 39... Bd4 {[%clk 0:28:44]} 40. Kg2 {[%clk 0:35:03]} 40... Re2+ {[%clk
0:25:58]} 41. Kf3 {[%clk 0:27:29]} 41... Rf2+ {[%clk 0:25:11]} 42. Kg3 {[%clk
0:27:38]} 42... Be3 {[%clk 0:24:42]} 43. g5 {[%clk 0:25:45]} 43... Rxf4 {[%clk
0:22:52]} 44. Bg6+ {[%clk 0:26:07]} 44... Ke7 {[%clk 0:21:57]} 45. gxh6 {[%clk
0:24:22]} 45... Rf6 {[%clk 0:22:17]} 46. Bc2 {[%clk 0:24:08]} 46... Bxh6 {[%clk
0:22:17]} 47. Kg2 {[%clk 0:22:49]} 47... Kd6 {[%clk 0:20:56]} 48. Rf1 {[%clk
0:22:38]} 48... Re6 {[%clk 0:20:15]} 49. Rf3 {[%clk 0:21:44]} 49... Bg7 {[%clk
0:17:53]} 50. Rg3 {[%clk 0:19:09]} 50... Bh8 {[%clk 0:15:59]} 51. h5 {[%clk
0:18:47]} 51... Re2+ {[%clk 0:15:33]} 52. Kf3 {[%clk 0:17:54]} 52... Re1 {[%clk
0:14:45]} 53. Rg8 {[%clk 0:12:58]} 53... Bf6 {[%clk 0:11:40]} 54. h6 {[%clk
0:10:13]} 54... d1=Q+ {[%clk 0:11:41]} 55. Bxd1 {[%clk 0:10:33]} 55... Rxd1
{[%clk 0:12:08]} 56. h7 {[%clk 0:10:52]} 56... c2 {[%clk 0:11:56]} 57. Rd8+
{[%clk 0:11:17]} 57... Kc7 {[%clk 0:12:19]} 58. h8=Q {[%clk 0:10:55]} 58... Bxh8
{[%clk 0:12:39]} 59. Rxh8 {[%clk 0:11:19]} 59... c1=Q {[%clk 0:13:02]} 0-1

[Variant "Standard"]
[Site "Europe Echecs"]